[Event "Serbian-ch Semifinal 2024"]
[Site "Paracin"]
[Date "2024.02.09"]
[Round "6.2"]
[White "Ivanisevic, Ivan"]
[Black "Radovanovic, Nikola"]
[Result "1-0"]
[ECO "E94"]
[WhiteElo "2517"]
[BlackElo "2446"]
[Annotator "TA"]
[PlyCount "61"]
[EventDate "2024.02.04"]
[EventType "swiss"]
[EventCountry "SRB"]
[SourceTitle "playchess.com"]
[Source "ChessBase"]
[SourceQuality "1"]
[TimeControl "40/5400+30:1800+30"]

{[%evp 17,61,30,32,16,11,14,92,88,105,106,110,112,312,175,164,169,168,176,255,262,252,211,198,210,239,206,257,261,275,189,629,632,786,788,1029,871,1022,1022,1108,1062,1908,1758,29986,29987,29990,29991]} 1. d4 {[%emt 0:00:06]} Nf6 {[%emt 0:03:15]} 2. c4 {[%emt 0:00:06]} g6 {[%emt 0:00:05]} 3. Nc3 {[%emt 0:00:05]} Bg7 {[%emt 0:00:03]} 4. e4 {[%emt 0:00:05]} d6 {[%emt 0:00:04]} 5. Be2 {[%emt 0:00:10]} O-O {[%emt 0:00:12]} 6. Nf3 {[%emt 0:00:04][%cal Bg1f3,Bf3d4,Bd4b5,Bb5c7][%mdl 32]} e5 {[%emt 0:00:18]} 7. O-O {[%emt 0:00:07]} exd4 {[%emt 0:02:40]} 8. Nxd4 {[%emt 0:00:24]} Re8 {[%emt 0:00:03]} 9. f3 {[%emt 0:00:07]} c6 {[%emt 0:00:03]} 10. Bg5 {[%emt 0:04:24]} Qb6 {[%emt 0:08:14][%cal Of6e4]} 11. Kh1 {[%emt 0:00:10]} Ng4 {[%emt 0:12:37]} 12. Ndb5 $1 $16 {[%emt 0:06:44] White is better.} Nf2+ {[%emt 0:09:24] [#]} 13. Rxf2 $1 {[%emt 0:00:15][%mdl 512]} Qxf2 {[%emt 0:00:03] [#]} 14. Nc7 {[%emt 0:04:02]} Qc5 $2 {[%emt 0:12:12]} 15. Qd2 {[%emt 0:04:00]} (15. Nxe8 $142 Qxg5 16. Nc7 (16. Nxd6 Na6 $11) (16. Qxd6 $2 Be5 $19) (16. Nxg7 Kxg7 17. Qxd6 Na6 $18)) 15... Bd7 $18 {[%emt 0:02:09][%cal Ob8a6]} 16. Nxa8 {[%emt 0:05:27] Hoping for Be3.} Na6 {[%emt 0:00:57]} 17. Be3 {[%emt 0:00:46]} Qe5 {[%emt 0:02:03] [#]} (17... Qa5 $142 18. c5 (18. Qxd6 Be6 $18) 18... Rxa8 19. cxd6 Nc5) 18. c5 $1 {[%emt 0:01:24][%cal Bc4c5,Bc5d6][%mdl 32]} Rxa8 {[%emt 0:05:11]} 19. cxd6 {[%emt 0:00:10]} Qa5 {[%emt 0:01:57]} 20. Rd1 {[%emt 0:00:44]} Be6 {[%emt 0:01:36]} 21. Bd4 {[%emt 0:02:23]} f6 {[%emt 0:04:14][%cal Bf7f6,Bf6e5][%mdl 32]} 22. Bf2 {[%emt 0:12:31]} Rd8 {[%emt 0:01:07][%cal Ba8d8,Bd8d7,Bd7f7][%mdl 32]} 23. Qe3 {[%emt 0:00:33]} ({Much less strong is} 23. Bxa7 Nc5 $18) 23... b6 $2 {[%emt 0:01:24] [#]} (23... Nb8 24. f4 (24. Qxa7 Qxa7 25. Bxa7 f5 $18) 24... Nd7) 24. e5 $1 {[%emt 0:13:33][%mdl 512]} fxe5 {[%emt 0:01:43]} (24... Qxe5 25. Qxe5) 25. Qg5 {[%emt 0:00:25]} Rd7 {[%emt 0:01:47] [#]} 26. Bc4 $1 {[%emt 0:00:29][%mdl 512]} Bxc4 {[%emt 0:08:31]} 27. Qg4 $1 {[%emt 0:00:12][%csl LRc4,LRd7]} Nb8 {[%emt 0:01:51]} 28. Qxc4+ {[%emt 0:00:08]} Kf8 {[%emt 0:01:22]} 29. Bh4 {[%emt 0:02:16] Qe6 would kill now.} Rf7 {[%emt 0:00:29]} 30. Be7+ {[%emt 0:01:38]} Ke8 {[%emt 0:00:16]} 31. Ne4 {[%emt 0:00:12] Black got outplayed after the opening.   Weighted Error Value: White=0.21 (precise) /Black=0.81.  Loses game:     	---       	Black=1      Mistake:       	White=1     	Black=3      Inaccurate:     	White=1     	---        OK:         	White=5     	Black=3      Best:        	---       	Black=2      Strong:       	White=2     	---        Brilliant:      	White=2     	---} 1-0

[Event "Serbian-ch Semifinal 2024"]
[Site "Paracin"]
[Date "2024.02.09"]
[Round "6.3"]
[White "Tilicheev, Viacheslav"]
[Black "Injac, Teodora"]
[Result "1/2-1/2"]
[ECO "E48"]
[WhiteElo "2487"]
[BlackElo "2439"]
[Annotator "TA"]
[PlyCount "93"]
[EventDate "2024.02.04"]
[EventType "swiss"]
[EventCountry "SRB"]
[SourceTitle "playchess.com"]
[Source "ChessBase"]
[SourceQuality "1"]
[TimeControl "40/5400+30:1800+30"]

{[%evp 17,93,43,39,-4,30,-58,-45,-70,-47,-53,-39,-44,-57,-173,-187,-224,-218,-190,-141,-139,-140,-127,-147,-132,-129,-159,-139,-235,-235,-225,-215,-235,-202,-216,-217,-305,-300,-333,-331,-339,-352,-332,-291,-312,-185,-164,-166,-175,-155,-150,0,0,0,0,0,0,0,0,0,0,0,0,0,0,0,0,0,0,0,0,0,0,0,0,0,0,0,0]} 1. d4 {[%emt 0:00:03]} Nf6 {[%emt 0:00:27]} 2. c4 {[%emt 0:00:08]} e6 {[%emt 0:00:05]} 3. Nc3 {[%emt 0:00:45]} Bb4 {[%emt 0:00:39]} 4. e3 {[%emt 0:00:42]} O-O {[%emt 0:00:31]} 5. Bd3 {[%emt 0:01:07]} Re8 {[%emt 0:02:09]} 6. Nge2 {[%emt 0:02:26]} d5 {[%emt 0:00:31]} 7. O-O {[%emt 0:02:36] E48: Nimzo-Indian: Rubinstein: 5 Bd3 d5 including 6 Ne2, but excluding 6 a3.} Nbd7 $1 {[%emt 0:01:03] 7...Nbd7 scores better than 7...b6.} 8. cxd5 {[%emt 0:03:38]} exd5 {[%emt 0:00:04]} 9. Qb3 {[%emt 0:03:50]} Bd6 {[%emt 0:00:32]} 10. f3 {[%emt 0:03:59]} (10. Nxd5 {looks sharper.} Nxd5 11. Qxd5 Nc5 12. Bxh7+ Kxh7 13. Qh5+) 10... c5 $146 {[%emt 0:19:30]} ({Predecessor:} 10... Nb6 11. Nb5 Bf8 12. Qc2 c6 13. Nbc3 c5 14. Bd2 g6 15. dxc5 Bxc5 16. Nd1 Nc4 17. Bxc4 dxc4 {1-0 Neverov,V (2388)-Sattarov,B (2433) Budapest FS11 GM 2022 (3)}) 11. Qc2 {[%emt 0:09:06]} ({White should play} 11. Nxd5 $11 cxd4 12. Nxf6+ (12. Nxd4 Nc5 $11) (12. exd4 Nxd5 13. Qxd5 Nc5 $15) 12... Qxf6 13. exd4 (13. Nxd4 Nc5 $15)) 11... a6 $15 {[%emt 0:07:00]} 12. g4 {[%emt 0:06:29]} c4 {[%emt 0:11:09]} 13. Bf5 {[%emt 0:00:07]} g6 {[%emt 0:00:01]} 14. Bxd7 $1 {[%emt 0:00:46]} Bxd7 {[%emt 0:00:15]} 15. g5 {[%emt 0:04:57] [#]} (15. Ng3 $1 $15) 15... Bf5 $1 $19 {[%emt 0:04:40]} 16. Qd1 {[%emt 0:18:01]} Nh5 {[%emt 0:00:26]} 17. f4 {[%emt 0:03:02]} Bf8 {[%emt 0:11:40]} (17... f6 $19 18. gxf6 Nxf6) 18. Ng3 $17 {[%emt 0:00:49]} Nxg3 {[%emt 0:00:14]} 19. hxg3 {[%emt 0:00:06]} Qd7 {[%emt 0:00:58]} 20. Qf3 {[%emt 0:05:38]} Rad8 {[%emt 0:01:12]} 21. Bd2 {[%emt 0:00:22]} b5 {[%emt 0:00:43]} 22. Qh1 {[%emt 0:02:35]} (22. a3 $17) 22... b4 {[%emt 0:03:06]} 23. Nd1 {[%emt 0:00:06]} a5 {[%emt 0:02:17]} 24. Rf2 {[%emt 0:02:41]} h5 {[%emt 0:02:38]} 25. gxh6 {[%emt 0:00:28]} Kh7 {[%emt 0:00:01]} 26. Qh4 {[%emt 0:01:18]} (26. Re2 $142) 26... Rc8 $19 {[%emt 0:06:57]} (26... Bxh6 $2 27. Rh2 Kg8 28. Qxh6 $18) 27. Re2 {[%emt 0:04:03]} a4 {[%emt 0:05:39]} (27... Bxh6 $2 28. Rh2 Kg7 29. Qxh6+ $18) 28. a3 {[%emt 0:00:20]} c3 {[%emt 0:04:08]} (28... Bxh6 $2 29. Rh2 (29. axb4 Rh8 $15) 29... Kg7 30. Qxh6+ $18) 29. bxc3 {[%emt 0:00:07]} bxa3 {[%emt 0:00:45]} (29... Bxh6 $2 30. Rh2 (30. axb4 Kg7 $11) 30... Kg7 31. Qxh6+ $18) 30. Nf2 {[%emt 0:05:22]} Qb5 {[%emt 0:02:50]} (30... Bxh6 31. g4 $18) (30... Be7 $142 31. Qh1 Rb8) 31. Ree1 $19 {[%emt 0:00:06]} Qb2 {[%emt 0:06:39]} (31... Bxh6 32. g4 $16) 32. g4 {[%emt 0:00:07]} Qxd2 {[%emt 0:02:02]} 33. gxf5 {[%emt 0:00:07]} Rxe3 {[%emt 0:01:20]} ({Black should try} 33... Rc6 $17 34. Ng4 Be7 (34... Rxc3 $2 35. fxg6+ fxg6 36. Nf6+ Kh8 37. Nxe8 $18)) 34. fxg6+ $1 $11 {[%emt 0:01:55]} fxg6 {[%emt 0:00:05]} 35. Ng4 {[%emt 0:04:20]} Be7 {[%emt 0:01:26]} (35... Rexc3 36. Re7+ Bxe7 37. Qxe7+ Kh8 38. Qg7#) 36. Qxe7+ $1 {[%emt 0:00:05]} Rxe7 {[%emt 0:00:02]} 37. Rxe7+ {[%emt 0:00:06]} Kg8 $1 {[%emt 0:00:18]} (37... Kh8 38. Nf6 (38. Rxa3 $2 Qd1+ 39. Kh2 Qxg4 $19) (38. Rxa3 $2 Qd1+ 39. Kf2 Qxg4 $19)) 38. Ne5 $1 {[%emt 0:06:48]} Qe3+ {[%emt 0:00:54]} (38... Rxc3 39. h7+ Kh8 40. Nxg6#) 39. Kg2 {[%emt 0:00:18]} Qe4+ {[%emt 0:02:30]} (39... Qxf4 40. h7+ Kh8 41. Nxg6#) 40. Kg1 {[%emt 0:00:15]} Qe3+ {[%emt 0:00:41]} ({And not} 40... Qxf4 41. h7+ Kh8 42. Nxg6#) (40... Kf8 $5 41. Rf7+ $8 Ke8 $11) 41. Kg2 {[%emt 0:30:10]} Qe4+ {[%emt 0:32:15]} ({Stronger than} 41... Qxf4 42. h7+ Kh8 43. Nxg6#) 42. Kg1 {[%emt 0:00:09]} Kf8 {[%emt 0:00:00]} (42... Qxf4 43. h7+ Kh8 44. Nxg6#) 43. Rf7+ {[%emt 0:00:00]} Ke8 {[%emt 0:00:00]} 44. h7 {[%emt 0:00:00]} Qe3+ {[%emt 0:00:00]} (44... Rxc3 45. h8=Q#) 45. Kg2 {[%emt 0:00:00]} Qe2+ {[%emt 0:00:00]} 46. Kg1 {[%emt 0:00:00]} Qe3+ {[%emt 0:00:00]} ({Not} 46... Rxc3 47. h8=Q#) 47. Kg2 {[%emt 0:00:00]} 1/2-1/2

[Event "Serbian-ch Semifinal 2024"]
[Site "Paracin"]
[Date "2024.02.09"]
[Round "6.4"]
[White "Ratkovic, Milovan"]
[Black "Kovacevic, Aleksandar"]
[Result "1/2-1/2"]
[ECO "B13"]
[WhiteElo "2396"]
[BlackElo "2453"]
[Annotator "TA"]
[PlyCount "87"]
[EventDate "2024.02.04"]
[EventType "swiss"]
[EventCountry "SRB"]
[SourceTitle "playchess.com"]
[Source "ChessBase"]
[SourceQuality "1"]
[TimeControl "40/5400+30:1800+30"]

{[%evp 11,87,12,18,16,25,10,20,13,36,33,31,32,16,14,16,20,25,-12,0,-14,28,0,0,-6,0,0,-1,-87,-70,-74,-71,-66,-74,-72,-49,-153,-153,-164,-157,-147,-27,-29,-33,-35,0,0,15,-66,-70,-66,-77,-56,-73,-168,-187,-266,-100,-96,-100,-91,-66,-71,0,0,0,0,0,0,0,0,0,0,0,0,0,0,0,0]} 1. d4 {[%emt 0:01:55]} Nf6 {[%emt 0:00:32]} 2. Nf3 {[%emt 0:00:44]} d5 {[%emt 0:01:51]} 3. Bf4 {[%emt 0:01:09]} c5 {[%emt 0:03:10]} 4. e3 {[%emt 0:00:29]} cxd4 {[%emt 0:08:56]} 5. exd4 {[%emt 0:00:57]} Nc6 {[%emt 0:00:45]} 6. c3 {[%emt 0:04:22]} Bf5 {[%emt 0:02:46]} 7. Qb3 {[%emt 0:03:44]} Qc8 {[%emt 0:05:07]} 8. Nbd2 {[%emt 0:06:49]} e6 {[%emt 0:01:05]} 9. Nh4 {[%emt 0:11:36]} Bg4 {[%emt 0:01:32]} 10. f3 {[%emt 0:09:09]} Bh5 {[%emt 0:00:25]} 11. g4 {[%emt 0:00:49]} Bg6 {[%emt 0:00:07]} 12. Nxg6 {[%emt 0:00:36]} hxg6 {[%emt 0:00:07]} 13. Bd3 {[%emt 0:16:50]} a6 {[%emt 0:01:49]} 14. Kf2 {[%emt 0:02:56]} Qd7 {[%emt 0:01:53]} 15. Kg2 {[%emt 0:04:53]} b5 {[%emt 0:13:17][%cal Bb7b5,Bb5b4][%mdl 32]} 16. a4 {[%emt 0:04:18]} b4 {[%emt 0:01:02]} 17. Qd1 {[%emt 0:02:03]} Bd6 {[%emt 0:01:28]} 18. Bg3 {[%emt 0:00:11]} O-O {[%emt 0:02:58]} 19. f4 {[%emt 0:07:11]} (19. Qe2 $11 {keeps the balance.}) 19... bxc3 {[%emt 0:04:48]} 20. bxc3 {[%emt 0:00:06]} Na5 {[%emt 0:01:45]} 21. Qf3 {[%emt 0:06:31]} Rfc8 {[%emt 0:01:42]} 22. Rhc1 {[%emt 0:00:50]} Rc6 {[%emt 0:03:51]} 23. h4 {[%emt 0:06:16]} (23. f5 $15 Bxg3 24. hxg3 gxf5 25. gxf5) 23... Rac8 $17 {[%emt 0:01:47]} 24. h5 {[%emt 0:04:17]} gxh5 {[%emt 0:10:11]} 25. gxh5 {[%emt 0:00:07]} Kf8 {[%emt 0:00:01]} ({Black should try} 25... Qc7 $1 $17 26. Ra2 Rxc3 27. Rxc3 Qxc3 28. Bxa6 (28. Rc2 $2 Qxc2 29. Bxc2 Rxc2 $19) 28... Qxf3+ 29. Nxf3 Ra8) 26. Bh4 $1 $11 {[%emt 0:00:52][%cal Oh5h6]} Be7 {[%emt 0:22:53]} (26... Rxc3 $6 27. Rxc3 Rxc3 28. Bxf6 gxf6 29. h6 $16) 27. f5 $1 {[%emt 0:00:31] fxe6 would now be deadly.} Ng8 {[%emt 0:00:02] Excellent horsemanship.} 28. f6 {[%emt 0:02:00]} Bxf6 {[%emt 0:02:52] [#]} (28... Nxf6 $6 29. h6 $16) (28... gxf6 $5 29. Qe3 f5 $15 (29... Rxc3 $2 30. h6 $18)) 29. h6 $1 {[%emt 0:01:17]} Nxh6 $1 $15 {[%emt 0:00:25]} (29... Bxh4 30. h7 e5 31. Bf5 $18 (31. h8=R $2 Rf6 $19) (31. h8=Q e4 $11)) 30. Bxf6 {[%emt 0:00:05]} gxf6 {[%emt 0:00:05]} 31. Rh1 {[%emt 0:00:56]} Ng8 {[%emt 0:00:03]} 32. Rh8 {[%emt 0:00:13]} (32. Rh7 $17 {was necessary.}) 32... Ke7 $19 {[%emt 0:02:01]} 33. Rah1 {[%emt 0:01:38]} (33. Qg4 $142) 33... f5 $2 {[%emt 0:00:20]} (33... Rxc3 $19 {and Black stays clearly on top.} 34. R1h7 Rf8 (34... Qxa4 35. Rxf7+ Kxf7 36. Rh7+ Kf8 37. Qg3 $16)) 34. Qg3 $17 {[%emt 0:00:23] aiming for Nf3.} Nf6 {[%emt 0:00:19]} 35. Nf3 {[%emt 0:00:45]} Rxc3 {[%emt 0:03:18]} 36. Ne5 {[%emt 0:00:30] [#]} Qxa4 {[%emt 0:00:35]} (36... Qc7 $1 $17 {...Nc4 is the strong threat.} 37. Qg7 Rxd3 (37... Rxh8 $2 38. Rxh8 Kd6 39. Qxf6 $18) 38. Qxf7+ Kd6 39. Qxc7+ Rxc7 40. Nxd3 Rc2+ 41. Kg1 Nc6) 37. Ng6+ $1 $11 {[%emt 0:00:29] The position is equal.} fxg6 {[%emt 0:01:22]} 38. R1h7+ {[%emt 0:00:01]} Nxh7 {[%emt 0:00:14]} 39. Rxh7+ {[%emt 0:00:12]} Kf8 {[%emt 0:00:44] And now ...Qa2+ would win.} 40. Rh8+ {[%emt 0:00:43]} Kf7 {[%emt 0:00:07]} 41. Rh7+ {[%emt 0:30:25]} Kf8 {[%emt 0:30:15] Threatens to win with ...Qa2+.} 42. Rh8+ {[%emt 0:00:00]} Kf7 {[%emt 0:00:00]} 43. Rh7+ {[%emt 0:00:00]} Kf8 {[%emt 0:00:00] White must now prevent ...Qa2+.} 44. Rh8+ {[%emt 0:00:00] Weighted Error Value: White=0.14 (very precise) /Black=0.20 (precise) .  Missed win:     	---       	Black=1      Mistake:       	White=5     	Black=2      Inaccurate:     	White=2     	Black=2      OK:         	White=12    	Black=14     Best:        	White=6     	Black=4      Strong:       	White=3     	Black=1} 1/2-1/2

[Event "Serbian-ch Semifinal 2024"]
[Site "Paracin"]
[Date "2024.02.09"]
[Round "6.5"]
[White "Nestorovic, Nikola"]
[Black "Atalik, Suat"]
[Result "1/2-1/2"]
[ECO "B33"]
[WhiteElo "2465"]
[BlackElo "2439"]
[Annotator "TA"]
[PlyCount "55"]
[EventDate "2024.02.04"]
[EventType "swiss"]
[EventCountry "SRB"]
[SourceTitle "playchess.com"]
[Source "ChessBase"]
[SourceQuality "1"]
[TimeControl "40/5400+30:1800+30"]

{[%evp 20,55,12,12,27,19,24,0,5,15,16,16,46,59,67,50,58,60,50,54,106,8,8,5,9,8,19,5,12,0,0,0,0,0,0,0,8,0]} 1. e4 {[%emt 0:00:02]} c5 {[%emt 0:00:16]} 2. Nf3 {[%emt 0:00:08]} Nc6 {[%emt 0:00:22]} 3. d4 {[%emt 0:00:10]} cxd4 {[%emt 0:00:09]} 4. Nxd4 {[%emt 0:00:04]} Nf6 {[%emt 0:00:30]} 5. Nc3 {[%emt 0:00:06]} e5 {[%emt 0:00:18]} 6. Ndb5 {[%emt 0:00:05]} d6 {[%emt 0:00:10]} 7. Nd5 {[%emt 0:00:08]} Nxd5 {[%emt 0:00:07]} 8. exd5 {[%emt 0:00:05]} Ne7 {[%emt 0:00:31]} 9. c3 {[%emt 0:00:16]} Nf5 {[%emt 0:00:21]} 10. Bd3 {[%emt 0:05:59]} Be7 {[%emt 0:03:15]} 11. a4 {[%emt 0:06:35]} O-O {[%emt 0:04:04]} 12. O-O {[%emt 0:00:06]} Bd7 {[%emt 0:06:12]} 13. f4 {[%emt 0:05:22]} exf4 {[%emt 0:09:47]} 14. Bxf4 {[%emt 0:02:17]} a6 {[%emt 0:04:57]} 15. Na3 {[%emt 0:01:08]} Rc8 {[%emt 0:07:45]} (15... Qa5 {keeps more tension.} 16. Qf3 Nh4 17. Qe4 Ng6) 16. Kh1 {[%emt 0:11:21]} Nh4 {[%emt 0:04:27]} 17. Nc4 {[%emt 0:02:01][%cal Of4g3]} Bf5 {[%emt 0:01:26]} 18. Bxf5 {[%emt 0:08:06]} Nxf5 {[%emt 0:01:01]} 19. Qd3 {[%emt 0:00:04][%cal Oa1e1]} g6 {[%emt 0:00:16] [#]} (19... Qc7 $14) 20. a5 {[%emt 0:00:29] White is much more active.} (20. g4 $1 $16 {[%cal Rg4f5]} Ng7 21. Bh6) 20... Bg5 $11 {[%emt 0:04:53] The position is equal.} 21. g4 {[%emt 0:15:31]} Bxf4 {[%emt 0:00:22]} 22. Rxf4 {[%emt 0:00:02]} Ng7 {[%emt 0:00:09]} 23. Raf1 {[%emt 0:01:13]} f5 {[%emt 0:01:48]} 24. gxf5 {[%emt 0:09:57]} Rxf5 {[%emt 0:00:20]} 25. Rxf5 {[%emt 0:00:33]} Nxf5 {[%emt 0:00:05]} 26. Ne3 {[%emt 0:00:04]} Nxe3 {[%emt 0:02:13]} 27. Qxe3 {[%emt 0:00:05]} Rc7 {[%emt 0:01:01]} 28. Rf4 {[%emt 0:03:36] Weighted Error Value: White=0.15 (very precise) /Black=0.08 (flawless) .  Mistake:       	White=1     	Black=1      Inaccurate:     	---       	Black=1      OK:         	White=2     	Black=5      Best:        	---       	Black=3} 1/2-1/2

[Event "Serbian-ch Semifinal 2024"]
[Site "Paracin"]
[Date "2024.02.09"]
[Round "6.6"]
[White "Bryakin, Mikhail"]
[Black "Pogorelskikh, Sofia"]
[Result "1-0"]
[ECO "D02"]
[WhiteElo "2479"]
[BlackElo "2198"]
[Annotator "TA"]
[PlyCount "145"]
[EventDate "2024.02.04"]
[EventType "swiss"]
[EventCountry "SRB"]
[SourceTitle "playchess.com"]
[Source "ChessBase"]
[SourceQuality "1"]
[TimeControl "40/5400+30:1800+30"]

{[%evp 39,145,-96,0,0,0,0,7,0,0,0,0,0,0,0,0,0,0,0,0,0,0,-6,-6,-4,0,-18,-10,-47,0,0,0,0,0,-12,0,0,0,0,0,0,0,0,0,0,0,0,8,8,8,8,8,8,11,9,10,16,22,0,0,0,0,0,0,0,0,0,0,0,0,0,107,0,101,110,106,46,289,268,423,325,500,500,500,500,500,500,493,493,1004,999,279,979,899,925,29972,29974,29977,29968,29973,29974,29974,29975,29973,29973,29986,29972,29963,5958]} 1. d4 {[%emt 0:03:58]} d5 {[%emt 0:00:15]} 2. Bf4 {[%emt 0:00:55]} Nf6 {[%emt 0:01:51]} 3. e3 {[%emt 0:03:06]} e6 {[%emt 0:02:05]} 4. Nd2 {[%emt 0:00:30]} c5 {[%emt 0:01:49]} 5. c3 {[%emt 0:02:15]} Nc6 {[%emt 0:01:35]} 6. Ngf3 {[%emt 0:00:27]} cxd4 {[%emt 0:02:17]} 7. exd4 {[%emt 0:01:29]} Nh5 {[%emt 0:02:31]} 8. Be3 {[%emt 0:00:33]} Bd6 {[%emt 0:04:22]} 9. Ne5 {[%emt 0:03:41]} Nf6 {[%emt 0:04:20]} 10. f4 {[%emt 0:01:50]} O-O {[%emt 0:11:36]} 11. Bd3 {[%emt 0:00:21]} Ne7 {[%emt 0:03:09]} 12. Bf2 {[%emt 0:02:14]} Nd7 {[%emt 0:04:30]} 13. O-O {[%emt 0:02:43]} f6 {[%emt 0:03:48]} 14. Qh5 {[%emt 0:07:52]} g6 {[%emt 0:03:58]} 15. Qh3 {[%emt 0:10:16]} Nxe5 {[%emt 0:08:20]} 16. fxe5 {[%emt 0:00:34]} fxe5 {[%emt 0:00:56]} 17. dxe5 {[%emt 0:17:02]} Bxe5 {[%emt 0:00:22]} 18. Bc5 {[%emt 0:00:33]} Bf6 {[%emt 0:04:51]} 19. Qe3 {[%emt 0:11:56]} Rf7 {[%emt 0:08:41]} 20. Bxa7 {[%emt 0:05:30]} (20. Nf3 $11 {remains equal.} Qc7) 20... Nc6 {[%emt 0:02:45]} (20... e5 $17 21. Bb6 Qd7) 21. Bb6 $11 {[%emt 0:01:47]} Bg5 {[%emt 0:04:42]} 22. Qc5 {[%emt 0:00:40]} Qf8 {[%emt 0:04:45]} 23. Nf3 {[%emt 0:02:16]} Qxc5+ {[%emt 0:01:12]} 24. Bxc5 {[%emt 0:00:10]} Bf6 {[%emt 0:00:51]} 25. h4 {[%emt 0:02:30]} Ne5 {[%emt 0:05:16]} 26. Nxe5 {[%emt 0:00:33]} Bxe5 {[%emt 0:00:05]} 27. Rxf7 {[%emt 0:01:56]} Kxf7 {[%emt 0:00:05]} 28. Rf1+ {[%emt 0:01:08]} Kg7 $1 {[%emt 0:00:31]} 29. a3 {[%emt 0:04:16]} Bd7 {[%emt 0:02:07]} 30. Kf2 {[%emt 0:01:30]} Bf6 {[%emt 0:02:10]} 31. g3 {[%emt 0:00:50]} e5 {[%emt 0:00:59]} 32. Ke3 {[%emt 0:01:00]} Rc8 {[%emt 0:01:29]} 33. Bb4 {[%emt 0:02:05]} e4 {[%emt 0:01:29]} (33... Bh3 $15 34. Rd1 Kf7) 34. Be2 $11 {[%emt 0:00:55]} h5 {[%emt 0:01:36]} 35. Rd1 {[%emt 0:02:08]} Be6 {[%emt 0:01:21]} 36. Kf4 {[%emt 0:01:12]} Bf7 {[%emt 0:01:20]} 37. Bd6 {[%emt 0:02:04]} d4 {[%emt 0:03:29]} 38. cxd4 {[%emt 0:00:12]} Rc2 {[%emt 0:00:13]} 39. Ke3 {[%emt 0:00:27]} Bd5 {[%emt 0:01:12]} 40. Rd2 {[%emt 0:02:17]} Rxd2 {[%emt 0:00:30]} 41. Kxd2 {[%emt 0:30:07]} Bxd4 {[%emt 0:30:20]} 42. b4 {[%emt 0:00:07]} Kf7 {[%emt 0:00:00]} 43. a4 {[%emt 0:00:00]} Ke6 {[%emt 0:00:00]} 44. Bf4 {[%emt 0:00:00]} Bf6 {[%emt 0:00:00]} 45. a5 {[%emt 0:00:00]} Be7 {[%emt 0:00:00]} 46. Kc3 {[%emt 0:00:00]} Bf6+ {[%emt 0:00:00]} 47. Kc2 {[%emt 0:00:00]} Bd8 {[%emt 0:00:00]} 48. Bb8 {[%emt 0:00:00]} Kf5 {[%emt 0:00:00]} 49. Bd6 {[%emt 0:00:00]} Ke6 {[%emt 0:00:00]} 50. Bc5 {[%emt 0:00:00]} Bc7 {[%emt 0:00:00]} 51. Bf2 {[%emt 0:00:00]} Kf5 {[%emt 0:00:00]} 52. Be1 {[%emt 0:00:00]} Be5 {[%emt 0:00:00]} 53. b5 {[%emt 0:00:00]} Bd4 {[%emt 0:00:00]} 54. Bd2 {[%emt 0:00:00]} e3 {[%emt 0:01:17]} (54... Be5 $11) 55. Be1 {[%emt 0:00:00]} (55. Kd3 $16 Bc5 56. Be1 (56. Bxe3 Be4+ 57. Kd2 Bb4+ 58. Kd1 Bxa5 $17)) 55... Bc5 {[%emt 0:03:49]} (55... Ke4 $11 {keeps the balance.}) 56. Kd3 $16 {[%emt 0:00:00]} Ke6 {[%emt 0:01:11] [#]} 57. Bc3 {[%emt 0:00:00]} ({White should play} 57. g4 $1 $16 {[%cal Rg4h5]}) 57... Kd7 $2 {[%emt 0:02:18] [#]} (57... Bd6 $14) 58. Be5 $1 $18 {[%emt 0:00:00]} Bb4 {[%emt 0:00:38]} (58... Ke6 $142 59. Bd4 Bd6) 59. Kd4 {[%emt 0:00:00]} (59. Kxe3 Bxa5 60. g4 hxg4 $11) 59... Bg2 {[%emt 0:00:31]} (59... Bf7 $2 60. a6 (60. Kxe3 Bxa5 61. Bd3 Be8 $11) 60... bxa6 61. bxa6 $18 (61. Kxe3 a5 $11)) (59... Ke6 $142 60. a6 bxa6 61. bxa6 Ba5) 60. a6 $18 {[%emt 0:00:00]} (60. Kxe3 Bxa5 61. Bd3 Ke6 $14) 60... bxa6 {[%emt 0:00:08]} 61. bxa6 {[%emt 0:00:05]} Bd2 {[%emt 0:00:45]} 62. Bf4 {[%emt 0:00:38]} Kc6 {[%emt 0:00:33]} 63. Bd3 {[%emt 0:03:25]} (63. Bxe3 Be1 64. Bf4 Bf2+ 65. Ke5 Kd7 $18) 63... Bc1 {[%emt 0:00:35]} (63... Kb6 $142 64. Bxe3 Be1 65. Ke5+ (65. Bxg6 Bxg3 66. Bg5 Kxa6 $16) 65... Kc7) 64. Bxe3 $18 {[%emt 0:00:31]} Bb2+ {[%emt 0:00:21]} 65. Kc4 {[%emt 0:00:04]} Bd5+ {[%emt 0:00:33]} 66. Kb4 {[%emt 0:00:04]} Be5 {[%emt 0:00:31]} 67. Bb5+ {[%emt 0:02:11]} ({Not} 67. Bxg6 Bd6+ 68. Kc3 Bxg3 $16) 67... Kc7 {[%emt 0:00:25]} 68. Bf4 {[%emt 0:00:13]} Bxf4 {[%emt 0:00:30]} 69. gxf4 {[%emt 0:00:05]} Kb6 {[%emt 0:00:40]} 70. Bd3 {[%emt 0:00:09]} Bf7 {[%emt 0:00:18]} 71. Kc3 {[%emt 0:00:25]} Kc5 {[%emt 0:00:20]} 72. Be4 {[%emt 0:00:29]} Kb6 {[%emt 0:00:07]} 73. Kd4 {[%emt 0:01:35]} 1-0